bitfinex-derivatives/quotes_SOLF0:USTF0_20250206
["timestamp","ask_amount","ask_price","bid_price","bid_amount"]
[1738845520508,5.0304,198.7,198.69,0.03865375]
[1738845521711,13.68792772,198.71,198.57,17.74792772]
[1738845522316,5.0312,198.67,198.64,5.0319]
[1738845522517,13.68792772,198.74,198.64,5.0319]
[1738845522814,0.03195246,198.67,198.64,0.03767065]
[1738845523016,13.68792772,198.74,198.64,0.03767065]
[1738845523518,0.03297271,198.71,198.64,0.03767065]
[1738845524019,5.0309,198.69,198.64,0.03767065]
[1738845524719,13.72090043,198.71,198.64,0.03767065]
[1738845525310,5.0313,198.67,198.64,0.03767065]
[1738845525917,5.0307,198.69,198.64,0.03767065]
[1738845526117,0.03297271,198.71,198.64,0.03767065]
[1738845526523,0.03297271,198.71,198.7,5.0304]
[1738845527922,0.03297271,198.71,198.69,0.03249566]
[1738845529320,5.0304,198.7,198.69,0.03249566]
[1738845530026,0.03297271,198.71,198.69,0.03249566]
[1738845532721,0.03297271,198.71,198.7,5.0304]
[1738845533025,0.03297271,198.71,198.69,0.03249566]
[1738845533327,0.03297271,198.71,198.69,5.06309566]
[1738845534926,0.03297271,198.71,198.7,5.0304]
[1738845536325,0.03297271,198.71,198.69,0.03249566]
[1738845536531,0.03297271,198.71,198.69,5.06289566]
[1738845537434,0.03297271,198.71,198.69,0.03249566]
[1738845537629,0.03297271,198.71,198.7,5.0304]
[1738845540530,13.68792772,198.83,198.69,13.72042338]
[1738845541033,5.0285,198.78,198.74,5.0292]
[1738845541629,0.0336448,198.78,198.74,0.03404]
[1738845541937,13.68792772,198.77,198.74,0.03404]
[1738845542137,13.68792772,198.77,198.63,13.68792772]
[1738845542338,13.68792772,198.77,198.66,5.0313]
[1738845542339,13.68792772,198.73,198.66,5.0313]
[1738845542534,13.68792772,198.73,198.63,13.68792772]
[1738845542730,5.0299,198.73,198.68,5.0308]
[1738845542935,5.0299,198.73,198.63,13.68792772]
[1738845543330,0.03704008,198.7,198.69,5.0307]
[1738845543534,13.68792772,198.79,198.66,13.68792772]
[1738845543731,1.5835,198.82,198.66,3.96]
[1738845543933,13.68792772,198.86,198.75,13.68792772]
[1738845544430,13.68792772,198.86,198.77,5.0284]
[1738845544431,5.0272,198.83,198.77,5.0284]
[1738845544635,0.03811466,198.82,198.79,0.03368496]
[1738845545233,5.0276,198.81,198.79,0.03368496]
[1738845545629,0.03811466,198.82,198.79,0.03368496]
[1738845546034,0.03811466,198.82,198.8,5.0278]
[1738845546239,0.03811466,198.82,198.79,0.03368496]
[1738845546936,0.03811466,198.82,198.8,5.0279]
[1738845547338,0.03811466,198.82,198.79,0.03368496]
[1738845548541,13.68792772,198.8,198.69,13.68792772]
[1738845548737,13.68792772,198.8,198.67,3.0781]
[1738845549635,5.0299,198.75,198.72,0.03630876]
[1738845549841,5.06866588,198.75,198.72,0.03630876]
[1738845550044,0.03876588,198.75,198.72,0.03630876]
[1738845550544,5.0299,198.74,198.72,0.03630876]
[1738845550945,0.03876588,198.75,198.72,0.03630876]
[1738845551141,5.0301,198.73,198.72,0.03630876]
[1738845553346,5.06846588,198.75,198.72,0.03630876]
[1738845553543,0.03876588,198.75,198.72,0.03630876]
[1738845553748,0.03876588,198.75,198.73,5.0299]
[1738845553947,0.03876588,198.75,198.72,13.72423648]
[1738845554341,0.03876588,198.75,198.73,5.0301]
[1738845554552,0.03876588,198.75,198.72,13.72423648]
[1738845555245,0.03876588,198.75,198.72,0.03630876]
[1738845556145,5.0301,198.73,198.72,0.03630876]
[1738845556645,5.0299,198.74,198.72,0.03630876]
[1738845556847,0.03876588,198.75,198.72,0.03630876]
[1738845557547,5.06846588,198.75,198.72,0.03630876]
[1738845557848,0.03876588,198.75,198.72,0.03630876]
[1738845558243,5.0299,198.74,198.72,0.03630876]
[1738845562149,0.03876588,198.75,198.74,5.0299]
[1738845565450,6.588e-05,198.75,198.74,5.0299]
[1738845566954,5.0282,198.81,198.72,13.72423648]
[1738845567152,5.0282,198.81,198.78,5.0289]
[1738845567653,5.0282,198.81,198.76,13.68792772]
[1738845567853,5.0284,198.8,198.77,5.0291]
[1738845568349,5.06298971,198.8,198.77,5.06308294]
[1738845568556,0.03458971,198.8,198.78,5.0287]
[1738845568747,0.03458971,198.8,198.77,0.03398294]
[1738845569055,0.03458971,198.8,198.77,5.06288294]
[1738845569255,0.03458971,198.8,198.77,0.03398294]
[1738845569456,0.03458971,198.8,198.79,5.0286]
[1738845570354,0.03458971,198.8,198.79,18.71652772]
[1738845570658,8.971e-05,198.8,198.79,18.71652772]
[1738845571757,5.0262,198.89,198.79,13.68792772]
[1738845572058,3.1087,198.93,198.82,13.68792772]
[1738845572448,3.1087,198.93,198.86,5.0267]
[1738845572654,3.1087,198.93,198.82,13.68792772]
[1738845572859,5.0259,198.9,198.85,5.0269]
[1738845573053,0.03824352,198.89,198.86,0.03743036]
[1738845573256,0.03824352,198.89,198.79,13.68792772]
[1738845573452,0.03824352,198.89,198.86,0.03739047]
[1738845573657,0.03824352,198.89,198.82,13.68792772]
[1738845573856,0.03824352,198.89,198.86,0.03521196]
[1738845575753,0.03824352,198.89,198.88,5.0264]
[1738845576763,0.03824352,198.89,198.86,0.03521196]
[1738845578165,0.03824352,198.89,198.86,5.06201196]
[1738845578664,0.03824352,198.89,198.86,0.03521196]
[1738845580064,0.03824352,198.89,198.88,5.0264]
[1738845580264,18.36722772,198.99,198.87,13.68792772]
[1738845581572,0.03572891,198.95,198.92,5.0253]
[1738845581775,0.03572891,198.95,198.91,0.03720115]
[1738845582167,0.03572891,198.95,198.92,5.0251]
[1738845582869,0.03572891,198.95,198.92,5.0253]
[1738845583069,0.03572891,198.95,198.91,0.03720115]
[1738845583372,0.03572891,198.95,198.94,5.0248]
[1738845587077,0.03572891,198.95,198.91,1.63940115]
[1738845587078,0.03572891,198.95,198.92,5.0253]
[1738845587275,0.03572891,198.95,198.91,4.82440115]
[1738845587775,0.03572891,198.95,198.91,0.03720115]
[1738845588168,5.0249,198.94,198.91,5.06270115]
[1738845590879,5.0252,198.93,198.91,0.03720115]
[1738845592180,5.0249,198.94,198.91,0.03720115]
[1738845592680,0.03572891,198.95,198.91,0.03720115]
[1738845593277,0.03572891,198.95,198.92,5.0253]
[1738845594788,5.06052891,198.95,198.92,5.0253]
[1738845596184,0.03572891,198.95,198.91,5.06270115]
[1738845596380,0.03572891,198.95,198.91,0.03720115]
[1738845596883,5.0253,198.92,198.91,0.03720115]
[1738845598985,5.0252,198.93,198.91,0.03720115]
[1738845599290,0.03572891,198.95,198.91,0.03720115]
[1738845601976,5.0253,198.92,198.91,0.03720115]
[1738845606196,13.68792772,198.93,198.8,3.2174]
[1738845606395,13.68792772,198.93,198.85,5.027]
[1738845606898,5.0263,198.89,198.85,5.027]
[1738845607395,5.0264,198.88,198.85,5.06176154]
[1738845607699,0.03542196,198.89,198.87,5.0265]
[1738845607997,0.03542196,198.89,198.85,0.03476154]
[1738845608187,0.03542196,198.89,198.88,5.0263]
[1738845614000,5.0247,198.95,198.88,5.0263]
[1738845614204,8.7338089,199.0,198.94,8.7338089]
[1738845614406,3.176,199.01,198.94,8.7338089]
[1738845614599,5.0234,199.0,198.96,5.0241]
[1738845615005,8.7338089,199.0,198.96,5.0241]
[1738845615312,8.7338089,198.98,198.96,0.03618662]
[1738845615606,5.0241,198.97,198.96,0.03618662]
[1738845615808,8.7338089,198.98,198.96,0.03618662]
[1738845616210,5.0241,198.97,198.96,0.03618662]
[1738845617108,5.0252,198.93,198.87,8.7338089]
[1738845617705,8.7338089,198.97,198.93,5.0251]
[1738845617901,8.7338089,198.97,198.91,8.7338089]
[1738845618112,8.7338089,198.99,198.91,8.7338089]
[1738845618306,0.03168679,198.96,198.92,0.03171332]
[1738845618810,0.03168679,198.96,198.93,5.0249]
[1738845619015,0.03168679,198.96,198.92,0.03171332]
[1738845619806,8.7338089,199.03,198.95,8.7338089]
[1738845620009,8.7338089,199.03,198.97,8.7338089]
[1738845620208,8.7338089,199.01,198.93,11.8971089]
[1738845620412,8.7338089,198.99,198.91,8.7338089]
[1738845620712,5.0241,198.97,198.93,5.025]
[1738845620912,0.03694929,198.97,198.93,0.03338647]
[1738845621113,0.03694929,198.97,198.93,8.76719537]
[1738845621411,0.03694929,198.97,198.96,5.0243]
[1738845622115,0.03694929,198.97,198.93,8.76719537]
[1738845622316,0.03694929,198.97,198.94,5.0246]
[1738845623317,0.03694929,198.97,198.95,8.7338089]
[1738845624619,0.03694929,198.97,198.93,8.76719537]
[1738845625813,5.06124929,198.97,198.93,0.03338647]
[1738845626011,0.03694929,198.97,198.93,0.03338647]
[1738845626415,5.06124929,198.97,198.93,5.05838647]
[1738845626713,0.03694929,198.97,198.93,0.03338647]
[1738845627213,0.03694929,198.97,198.93,5.05848647]
[1738845628819,0.03694929,198.97,198.93,0.03338647]
[1738845629220,8.7338089,198.94,198.93,0.03338647]
[1738845630824,13.7586089,198.94,198.93,0.03338647]
[1738845632618,5.0263,198.89,198.85,5.027]
[1738845632820,8.7338089,198.92,198.85,8.7338089]
[1738845633519,8.7338089,198.94,198.87,8.7338089]
[1738845633726,0.03695098,198.9,198.87,8.77129024]
[1738845634218,0.03695098,198.9,198.89,13.7599089]
[1738845634722,5.0246,198.95,198.89,8.7338089]
[1738845635023,8.7338089,198.98,198.91,8.7338089]
[1738845635219,5.0241,198.97,198.91,8.7338089]
[1738845635420,5.0241,198.97,198.93,13.7586089]
[1738845636024,0.03749284,198.97,198.96,5.0243]
[1738845638826,8.7338089,199.08,198.95,8.7338089]
[1738845639027,20.42350663,199.09,199.03,8.7338089]
[1738845639325,25.44460663,199.09,199.04,5.0221]
[1738845639526,25.44460663,199.09,199.03,8.7338089]
[1738845640023,0.03831948,199.08,199.05,8.7338089]
[1738845640325,0.03831948,199.08,199.04,0.03424932]
[1738845641427,5.0216,199.07,199.04,0.03424932]
[1738845641726,0.03831948,199.08,199.04,0.03424932]
[1738845642327,5.05961948,199.08,199.04,0.03424932]
[1738845642629,0.03831948,199.08,199.04,0.03424932]
[1738845645831,0.03831948,199.08,199.06,5.0216]
[1738845646833,0.03831948,199.08,199.05,5.0219]
[1738845647031,0.03831948,199.08,199.04,0.03424932]
[1738845647627,5.022,199.06,199.04,0.03424932]
[1738845648234,5.0221,199.05,199.04,0.03424932]
[1738845650131,13.62393966,199.06,198.93,13.62393966]
[1738845650335,13.62393966,199.03,198.93,13.62393966]
[1738845650538,13.62393966,199.03,198.9,13.62393966]
[1738845651128,13.62393966,199.03,198.93,5.0251]
[1738845651326,5.05622603,198.98,198.95,0.0357455]
[1738845653039,0.03222603,198.98,198.95,0.0357455]
[1738845653237,5.0243,198.96,198.95,0.0357455]
[1738845659637,16.65913966,198.97,198.84,13.62393966]
[1738845659941,16.65913966,198.97,198.85,5.0269]
[1738845660242,5.0261,198.9,198.84,13.62393966]
[1738845660439,16.65913966,198.97,198.84,13.62393966]
[1738845660641,5.0246,198.95,198.89,8.73143981]
[1738845660839,0.03812983,198.92,198.91,13.75703981]
[1738845661034,8.73143981,199.0,198.91,8.73143981]
[1738845661240,8.73143981,199.0,198.94,8.73143981]
[1738845661543,8.73143981,198.96,198.9,8.73143981]
[1738845661736,8.73143981,198.96,198.95,0.0369466]
[1738845661936,8.73143981,198.96,198.86,13.75813981]
[1738845662241,8.73143981,198.94,198.89,0.03311365]
[1738845662442,5.0256,198.91,198.87,5.0264]
[1738845662641,5.0256,198.91,198.9,0.03627919]
[1738845663634,0.03294947,198.93,198.9,0.03627919]
[1738845663836,8.73143981,198.92,198.9,0.03627919]
[1738845664140,5.05804947,198.93,198.9,0.03627919]
[1738845664339,0.03294947,198.93,198.9,8.767719]
[1738845664643,0.03294947,198.93,198.9,0.03627919]
[1738845665846,0.03294947,198.93,198.9,13.67845119]
[1738845666643,5.0235,199.0,198.94,5.0247]
[1738845666947,3.0352,199.03,198.93,13.642172]
[1738845667138,1.5086,199.03,198.93,13.642172]
[1738845667344,5.0231,199.01,198.96,5.0241]
[1738845667938,0.03517482,199.0,198.98,5.0236]
[1738845668144,1.5843,199.06,198.98,5.0236]
[1738845668445,0.03785697,199.01,198.98,5.0236]
[1738845669146,0.03785697,199.01,199.0,5.0233]
[1738845671648,13.642172,199.12,198.99,13.642172]
[1738845671843,5.0218,199.07,199.02,5.0226]
[1738845672043,13.642172,199.12,198.99,13.642172]
[1738845672243,3.057,199.13,199.02,13.642172]
[1738845672444,5.0209,199.1,199.04,5.0222]
[1738845672643,3.057,199.13,199.04,5.0222]
[1738845672942,0.0326383,199.09,199.05,0.03300539]
[1738845673450,13.6748103,199.09,199.05,0.03300539]
[1738845674546,5.0218,199.06,199.05,0.03300539]
[1738845675543,5.0213,199.08,199.05,0.03300539]
[1738845676343,5.0216,199.07,199.05,0.03300539]
[1738845676744,0.0326383,199.09,199.05,0.03300539]
[1738845677946,5.0214,199.08,199.05,0.03300539]
[1738845678248,0.0326383,199.09,199.05,5.05480539]
[1738845678839,0.0326383,199.09,199.05,13.67517739]
[1738845679048,0.0326383,199.09,199.08,5.0213]
[1738845679248,0.0326383,199.09,199.05,13.67517739]
[1738845679445,0.0326383,199.09,199.05,0.03300539]
[1738845680350,0.0326383,199.09,199.07,13.642172]
[1738845680947,0.0326383,199.09,199.08,5.0213]
[1738845684053,0.0326383,199.09,199.05,0.03300539]
[1738845685857,5.0216,199.07,199.05,0.03300539]
[1738845687253,0.0326383,199.09,199.07,5.0215]
[1738845688053,0.0326383,199.09,199.05,0.03300539]
[1738845689160,5.0218,199.07,199.05,0.03300539]
[1738845689454,0.0326383,199.09,199.05,0.03300539]
[1738845689666,5.0537383,199.09,199.05,0.03300539]
[1738845689959,0.0326383,199.09,199.05,5.05480539]
[1738845690350,0.0326383,199.09,199.05,0.03300539]
[1738845690557,5.0216,199.07,199.05,0.03300539]
[1738845692261,5.0213,199.08,199.05,0.03300539]
[1738845694163,0.0326383,199.09,199.05,0.03300539]
[1738845694666,8.75255172,199.09,199.05,0.03300539]
[1738845695556,5.0217,199.07,199.05,0.03300539]
[1738845695762,8.75255172,199.09,199.05,0.03300539]
[1738845695968,5.0218,199.06,199.05,0.03300539]
[1738845696764,13.74171342,199.06,199.05,0.03300539]
[1738845697269,5.0231,199.01,198.97,13.74391342]
[1738845698367,5.0234,199.0,198.97,8.75707579]
[1738845698662,0.03721764,199.01,198.97,0.03716237]
[1738845698863,5.0235,199.0,198.97,0.03716237]
[1738845699069,5.0235,199.0,198.97,5.06126237]
[1738845699261,0.03721764,199.01,198.97,0.03716237]
[1738845699866,0.03721764,199.01,198.99,5.0234]
[1738845700265,0.03721764,199.01,198.97,0.03716237]
[1738845700570,5.06041764,199.01,198.97,5.06096237]
[1738845700866,0.03721764,199.01,198.97,0.03716237]
[1738845701071,0.03721764,199.01,199.0,5.0233]
[1738845701271,5.0215,199.08,198.99,13.63343798]
[1738845701569,13.63343798,199.12,198.99,13.63343798]
[1738845702272,5.0217,199.07,199.03,5.0224]
[1738845702473,5.058414,199.07,199.04,0.0329087]
[1738845702965,0.036714,199.07,199.04,0.0329087]
[1738845704767,0.036714,199.07,199.06,5.0218]
[1738845705269,0.036714,199.07,199.04,0.0329087]
[1738845705567,5.058314,199.07,199.04,0.0329087]
[1738845706269,5.0218,199.06,199.04,0.0329087]
[1738845706470,0.036714,199.07,199.04,0.0329087]
[1738845707772,5.0218,199.06,199.04,0.0329087]
[1738845709174,5.0221,199.05,199.04,0.0329087]
[1738845710472,0.036714,199.07,199.04,0.0329087]
[1738845710773,0.036714,199.07,199.05,13.63343798]
[1738845711865,0.036714,199.07,199.06,5.0218]
[1738845712875,78.13402234,199.18,199.05,13.63343798]
[1738845712876,69.64812234,199.18,199.05,13.63343798]
[1738845713077,1.552,199.18,199.08,13.63343798]
[1738845713974,1.552,199.18,199.11,0.03588675]
[1738845714179,0.03345353,199.15,199.11,0.03588675]
[1738845716070,5.0203,199.12,199.11,0.03588675]
[1738845716275,13.63343798,199.12,198.99,13.63343798]
[1738845717383,0.03229383,199.07,199.04,0.03339049]
[1738845717883,5.05409383,199.07,199.04,0.03339049]
[1738845719586,5.0221,199.05,199.04,0.03339049]
[1738845720278,13.63343798,199.06,198.93,13.63343798]
[1738845720488,5.0236,198.99,198.93,13.63343798]
[1738845720681,5.0236,198.99,198.95,5.0244]
[1738845721482,5.0567491,198.99,198.95,5.05950818]
[1738845722587,5.0567491,198.99,198.95,5.05970818]
[1738845723256,0.0331491,198.99,198.95,5.05970818]
[1738845723403,5.0239,198.98,198.95,5.05970818]
[1738845723988,5.0567491,198.99,198.95,5.05970818]
[1738845724193,5.0567491,198.99,198.95,0.03510818]
[1738845724389,5.0567491,198.99,198.96,5.0243]
[1738845724588,0.0331491,198.99,198.95,0.03510818]
[1738845724790,0.0331491,198.99,198.98,5.0238]
[1738845724986,13.63343798,199.1,198.96,13.63343798]
[1738845725185,13.63343798,199.1,198.99,13.63343798]
[1738845725488,1.5421,199.11,198.99,13.63343798]
[1738845726088,1.5421,199.11,199.03,5.0226]
[1738845726288,0.03578705,199.07,199.03,5.05590741]
[1738845726489,5.05738705,199.07,199.03,5.05590741]
[1738845726891,0.03578705,199.07,199.03,5.05590741]
[1738845727488,0.03578705,199.07,199.04,5.0222]
[1738845728391,0.03578705,199.07,199.06,5.0218]
[1738845729592,20.42350663,199.19,199.05,13.63343798]
[1738845729789,20.42350663,199.19,199.09,13.63343798]
[1738845729983,5.0194,199.16,199.09,13.63343798]
[1738845730791,0.03379461,199.14,199.11,5.05380124]
[1738845732690,0.03379461,199.14,199.12,5.0202]
[1738845732891,0.03379461,199.14,199.11,0.03330124]
[1738845733281,0.03379461,199.14,199.13,5.02]
[1738845733683,0.03379461,199.14,199.11,0.03330124]
[1738845733990,0.03379461,199.14,199.11,5.05360124]
[1738845734188,0.03379461,199.14,199.11,0.03330124]
[1738845734689,5.05379461,199.14,199.11,0.03330124]
[1738845734890,0.03379461,199.14,199.11,0.03330124]
[1738845736593,0.03379461,199.14,199.11,5.05370124]
[1738845736792,0.03379461,199.14,199.11,0.03330124]
[1738845736995,0.03379461,199.14,199.12,13.63343798]
[1738845737189,5.0183,199.2,199.15,5.0195]
[1738845737494,5.0183,199.2,199.12,13.63343798]
[1738845738197,16.63713798,199.22,199.09,13.63343798]
[1738845738492,16.63713798,199.22,199.14,0.03688748]
[1738845738690,5.0195,199.15,199.14,0.03688748]
[1738845739692,5.0193,199.16,199.14,0.03688748]
[1738845740999,16.63713798,199.22,199.14,5.05658748]
[1738845741493,16.63713798,199.22,199.14,0.03688748]
[1738845741689,5.0187,199.19,199.14,0.03688748]
[1738845742395,5.0187,199.19,199.16,5.0192]
[1738845742697,3.0037,199.22,199.14,0.03688748]
[1738845742899,5.0188,199.18,199.14,0.03688748]
[1738845743195,16.63713798,199.22,199.14,0.03688748]
[1738845743899,5.0195,199.15,199.14,0.03688748]
[1738845744599,16.63713798,199.22,199.14,0.03688748]
[1738845745301,5.0193,199.16,199.14,0.03688748]
[1738845746900,16.63713798,199.22,199.14,0.03688748]
[1738845747101,5.0192,199.17,199.14,0.03688748]
[1738845747301,16.63713798,199.22,199.14,0.03688748]
[1738845748498,5.0195,199.15,199.14,0.03688748]
[1738845752502,5.0194,199.16,199.14,0.03688748]
[1738845752694,13.63343798,199.19,199.14,0.03688748]
[1738845753502,16.63713798,199.22,199.14,0.03688748]
[1738845754404,13.63343798,199.16,199.14,0.03688748]
[1738845754717,13.63343798,199.16,199.04,3.2307]
[1738845754897,13.63343798,199.13,198.99,13.63343798]
[1738845755097,13.63343798,199.1,198.99,13.63343798]
[1738845755297,5.0216,199.07,199.01,5.0229]
[1738845755502,13.63343798,199.1,198.99,13.63343798]
[1738845755702,13.63343798,199.13,199.02,13.63343798]
[1738845756002,0.03233201,199.06,199.04,5.0223]
[1738845756199,0.03233201,199.06,199.03,0.03390453]
[1738845756399,0.03485825,199.06,199.03,0.03390453]
[1738845756602,0.03485825,199.06,199.05,5.0221]
[1738845759699,0.03485825,199.06,199.05,18.65553798]
[1738845759895,1.6435,199.19,199.05,13.63343798]
[1738845760101,1.6435,199.19,199.1,13.63343798]
[1738845760602,1.6435,199.19,199.11,5.0205]
[1738845760998,5.0196,199.15,199.13,0.03414711]
[1738845761502,1.6435,199.19,199.13,0.03414711]
[1738845762996,5.0193,199.16,199.13,0.03414711]
[1738845763994,1.6435,199.19,199.13,0.03414711]
[1738845764199,5.0191,199.17,199.13,5.05414711]
[1738845764496,5.0191,199.17,199.13,0.03414711]
[1738845764692,1.6435,199.19,199.13,0.03414711]
[1738845764898,5.0193,199.16,199.13,0.03414711]
[1738845765293,1.6435,199.19,199.13,0.03414711]
[1738845765497,1.4877,199.22,199.13,13.66758509]
[1738845766903,5.0185,199.2,199.16,5.0193]
[1738845767302,5.0185,199.2,199.16,5.05740276]
[1738845770006,1.4877,199.22,199.16,0.03810276]
[1738845770507,5.019,199.17,199.16,0.03810276]
[1738845773003,15.12113798,199.22,199.16,0.03810276]
[1738845773710,5.0185,199.19,199.16,5.05720276]
[1738845773909,15.12113798,199.22,199.16,0.03810276]
[1738845774504,5.0186,199.19,199.16,0.03810276]
[1738845776904,13.63343798,199.22,199.16,0.03810276]
[1738845777110,5.019,199.17,199.16,0.03810276]
[1738845779606,5.0207,199.11,199.02,13.63343798]
[1738845779815,13.63343798,199.15,199.02,13.63343798]
[1738845780011,13.63343798,199.12,199.02,13.63343798]
[1738845780313,5.0216,199.07,199.0,1.6391]
[1738845780816,0.03388154,199.05,199.02,0.03503052]
[1738845781009,0.03388154,199.05,199.02,5.05773052]
[1738845782212,0.03388154,199.05,199.03,5.0225]
[1738845782413,0.03388154,199.05,199.02,0.03503052]
[1738845783817,5.05598154,199.05,199.02,0.03503052]
[1738845784119,0.03388154,199.05,199.02,0.03503052]
[1738845785018,5.0224,199.04,199.02,0.03503052]
[1738845785315,0.03388154,199.05,199.02,0.03503052]
[1738845786617,5.0225,199.04,199.02,0.03503052]
[1738845786820,0.03388154,199.05,199.02,0.03503052]
[1738845787317,5.0226,199.03,199.02,0.03503052]
[1738845789625,6.69658154,199.05,199.02,0.03503052]
[1738845789926,1.67428154,199.05,199.02,0.03503052]
[1738845790522,5.0223,199.04,199.02,0.03503052]
[1738845791724,5.0226,199.03,199.02,0.03503052]
[1738845797935,5.0226,199.03,198.96,5.0243]
[1738845797936,0.03388154,199.05,198.93,3.0253]
[1738845798139,13.63343798,199.03,198.9,13.63343798]
[1738845798337,1.5393,199.02,198.9,13.63343798]
[1738845798937,13.63343798,199.06,198.9,13.63343798]
[1738845799233,0.03550192,198.98,198.94,13.66562609]
[1738845799434,13.63343798,199.06,198.94,13.63343798]
[1738845799633,0.03362879,198.98,198.97,5.0239]
[1738845799833,5.023,199.02,198.94,13.63343798]
[1738845800039,0.03370319,198.99,198.96,0.03233889]
[1738845800239,0.03370319,198.99,198.97,5.0241]
[1738845800834,0.03370319,198.99,198.96,0.03233889]
[1738845802443,13.63343798,198.97,198.86,1.6471]
[1738845802843,5.0256,198.91,198.87,5.0264]
[1738845803146,13.63343798,198.97,198.86,1.6471]
[1738845803345,5.0246,198.95,198.89,5.0259]
[1738845803541,0.03284898,198.93,198.9,0.03796399]
[1738845804047,0.03284898,198.93,198.92,5.0253]
[1738845806849,19.01903798,199.06,198.97,5.0241]
[1738845807150,19.01903798,199.06,198.91,13.63343798]
[1738845807351,5.0237,198.99,198.93,5.025]
[1738845807652,5.0237,198.99,198.91,13.63343798]
[1738845807952,5.0237,198.99,198.93,5.025]
[1738845808254,0.03711285,198.97,198.93,0.03496672]
[1738845808752,0.03711285,198.97,198.95,5.0245]
[1738845809455,0.03711285,198.97,198.96,5.0243]
[1738845809754,5.06141285,198.97,198.93,0.03496672]
[1738845810251,5.06141285,198.97,198.93,5.05986672]
[1738845810446,0.03711285,198.97,198.93,0.03496672]
[1738845811553,0.03711285,198.97,198.95,5.0244]
[1738845813358,0.03711285,198.97,198.96,5.0243]
[1738845814561,0.03711285,198.97,198.95,5.0245]
[1738845816156,0.03711285,198.97,198.96,5.0243]
[1738845819058,10.35198461,199.06,198.95,8.72638461]
[1738845819360,8.72638461,199.04,198.96,8.72638461]
[1738845819560,8.72638461,199.04,198.97,5.0239]
[1738845819762,10.35198461,199.06,198.98,8.72638461]
[1738845820255,5.05757676,199.04,199.0,5.06139256]
[1738845820455,0.03497676,199.04,199.0,0.03829256]
[1738845820863,5.0227,199.03,199.0,0.03829256]
[1738845821560,0.03497676,199.04,199.0,0.03829256]
[1738845821766,0.03497676,199.04,199.02,5.0227]
[1738845821963,0.03497676,199.04,199.0,8.76467717]
[1738845822466,0.03497676,199.04,199.02,8.72638461]
[1738845822866,0.03497676,199.04,199.03,5.0226]
[1738845824864,0.03497676,199.04,199.0,8.76467717]
[1738845825061,0.03497676,199.04,199.0,0.03829256]
[1738845825564,5.0228,199.03,199.0,0.03829256]
[1738845826164,5.05727676,199.04,199.0,5.06139256]
[1738845826467,5.05727676,199.04,199.0,0.03829256]
[1738845827765,5.05727676,199.04,199.01,5.0231]
[1738845831368,5.0229,199.02,199.0,0.03829256]
[1738845831568,0.03497676,199.04,199.0,0.03829256]
[1738845832271,5.0231,199.01,199.0,0.03829256]
[1738845844078,13.62824556,199.01,198.88,18.42704556]
[1738845844778,5.0247,198.95,198.91,5.0255]
[1738845845277,5.05890679,198.95,198.91,5.06374682]
[1738845845479,0.03420679,198.95,198.91,0.03824682]
[1738845846582,5.0253,198.93,198.91,0.03824682]
[1738845847680,0.03420679,198.95,198.91,0.03824682]
[1738845848175,5.05880679,198.95,198.92,5.0253]
[1738845848381,0.03420679,198.95,198.91,0.03824682]
[1738845848985,8.73163129,198.94,198.91,0.03824682]
[1738845849782,5.0251,198.93,198.91,0.03824682]
[1738845850383,5.0253,198.92,198.91,0.03824682]
[1738845850583,0.03420679,198.95,198.89,8.49582312]
[1738845851179,8.73163129,198.94,198.89,5.0261]
[1738845851379,8.73163129,198.92,198.85,8.73163129]
[1738845851884,5.06426636,198.9,198.87,0.03329101]
[1738845852085,8.76979765,198.9,198.87,0.03329101]
[1738845852284,5.0264,198.88,198.87,0.03329101]
[1738845852787,8.76979765,198.9,198.87,0.03329101]
[1738845852981,5.0261,198.89,198.87,0.03329101]
[1738845853389,0.03816636,198.9,198.87,8.7649223]
[1738845853585,0.03816636,198.9,198.89,8.73163129]
[1738845853881,0.03816636,198.9,198.89,13.75773129]
[1738845854083,8.73163129,199.0,198.89,8.73163129]
[1738845854279,10.29663129,199.02,198.95,5.0246]
[1738845854487,5.0239,198.98,198.94,8.73163129]
[1738845855382,5.05608693,198.98,198.94,8.76695538]
[1738845855586,0.03218693,198.98,198.94,8.76695538]
[1738845856184,5.05628693,198.98,198.94,13.79175538]
[1738845856686,5.05628693,198.98,198.94,8.76695538]
[1738845857083,5.0241,198.97,198.94,0.03532409]
[1738845857385,0.03218693,198.98,198.94,0.03532409]
[1738845857581,0.03218693,198.98,198.94,8.76695538]
[1738845858789,0.03218693,198.98,198.95,5.0246]
[1738845860586,0.03218693,198.98,198.94,8.76695538]
[1738845860985,8.76381822,198.98,198.94,0.03532409]
[1738845861283,0.03218693,198.98,198.94,8.76695538]
[1738845862689,0.03218693,198.98,198.96,8.73163129]